bitfinex/quotes_ETHUSD_20260217
["timestamp","ask_amount","ask_price","bid_price","bid_amount"]
[1771352598661,0.626,1991.1,1989.9,1.86329389]
[1771352598829,1.25565042,1991.0,1989.9,1.86329389]
[1771352599024,1.25565042,1991.0,1989.7,5.02570408]
[1771352599224,1.25565042,1991.0,1989.8,1.86340767]
[1771352599468,1.25565042,1991.0,1989.9,0.607]
[1771352600528,1.73225389,1991.0,1990.5,0.001]
[1771352600726,1.73225389,1991.0,1989.7,5.02570408]
[1771352600727,1.73225389,1991.0,1989.7,1.86342912]
[1771352601265,0.47660347,1990.9,1990.4,0.001]
[1771352601434,0.47660347,1990.9,1989.8,0.607]
[1771352601630,1.25565042,1991.0,1989.4,5.02662529]
[1771352601631,0.47660347,1990.7,1990.2,0.001]
[1771352601853,0.627,1990.6,1989.2,0.46414313]
[1771352602074,0.627,1990.6,1989.4,0.607]
[1771352602234,1.10360347,1990.6,1989.4,0.607]
[1771352602548,1.10360347,1990.6,1988.8,1.72118255]
[1771352602549,14.566324,1990.5,1988.8,1.72118255]
[1771352602854,1.25602893,1990.4,1989.0,1.25691302]
[1771352603829,1.25602893,1990.4,1989.1,0.606]
[1771352604127,1.25601176,1990.5,1989.1,1.07014313]
[1771352604524,1.25601176,1990.5,1989.1,0.46414313]
[1771352604725,1.25601176,1990.5,1989.2,1.511]
[1771352604922,0.627,1990.6,1989.3,1.86272347]
[1771352605126,0.627,1990.6,1989.3,3.2318666]
[1771352605332,1.88290471,1990.6,1989.3,3.2318666]
[1771352605728,1.8829241,1990.6,1989.3,3.2318666]
[1771352605933,0.47660347,1990.7,1989.3,2.76772347]
[1771352606657,0.47660347,1990.7,1989.4,0.606]
[1771352607030,0.47660347,1990.5,1989.5,1.25659713]
[1771352607844,1.25590274,1990.6,1989.5,1.25659713]
[1771352608040,5.02317659,1990.8,1989.5,1.25659713]
[1771352608551,1.25571603,1990.9,1989.5,1.72074026]
[1771352608765,5.0221774,1991.2,1989.6,2.43308602]
[1771352609055,5.0221774,1991.2,1989.8,1.25640767]
[1771352609056,5.02224235,1991.2,1989.8,1.25640767]
[1771352609261,1.2555243,1991.2,1989.8,1.25640767]
[1771352609461,1.2555243,1991.2,1989.9,1.511]
[1771352609768,1.2555243,1991.2,1989.8,1.7205508]
[1771352609947,7.558716,1991.1,1990.0,0.606]
[1771352610152,1.73212777,1991.2,1990.0,0.606]
[1771352610349,2.054432,1991.1,1990.0,0.606]
[1771352610554,4.555022,1991.1,1989.8,1.25640767]
[1771352610750,3.700093,1991.1,1989.9,1.511]
[1771352611066,2.662766,1991.1,1989.9,1.511]
[1771352611267,1.25562974,1991.1,1990.0,1.2562814]
[1771352612283,0.47660347,1990.7,1989.1,5.49130653]
[1771352612488,0.47660347,1990.7,1989.2,0.92300519]
[1771352612787,0.626,1990.8,1989.3,0.92287845]
[1771352612986,0.626,1990.8,1989.4,0.45872186]
[1771352613186,0.626,1990.8,1989.5,1.36372186]
[1771352613392,1.25583965,1990.7,1989.6,1.86253397]
[1771352613995,1.25583965,1990.7,1989.7,0.606]
[1771352615484,1.25583965,1990.7,1989.8,1.25640767]
[1771352615710,30.47660347,1990.6,1989.4,0.001]
[1771352615998,3.695801,1990.6,1989.4,1.25765142]
[1771352616321,3.695801,1990.6,1989.5,0.46067777]
[1771352616460,0.47660347,1990.5,1988.5,5.49380651]
[1771352616660,3.347763,1990.1,1988.6,1.25716584]
[1771352616960,2.840163,1989.9,1988.6,1.25716584]
[1771352617174,2.840163,1989.9,1988.5,0.46514313]
[1771352617371,1.25640767,1989.8,1988.7,0.607]
[1771352617789,11.218632,1989.7,1988.7,0.607]
[1771352618302,11.218632,1989.7,1988.5,0.001]
[1771352618664,11.218632,1989.7,1988.6,0.607]
[1771352619078,11.218632,1989.7,1988.5,0.001]
[1771352619311,0.47660347,1989.6,1988.5,0.001]
[1771352619470,11.10471113,1989.5,1988.2,0.001]
[1771352619805,11.10471113,1989.5,1988.2,0.608]
[1771352619806,16.347082,1989.4,1988.2,0.608]
[1771352620181,14.620632,1989.4,1988.2,0.608]
[1771352620423,17.449245,1989.3,1988.2,0.608]
[1771352620623,17.449245,1989.3,1988.2,0.001]
[1771352620800,17.449245,1989.3,1988.2,0.608]
[1771352621392,1.25697621,1988.9,1987.6,0.001]
[1771352621580,9.713163,1988.8,1987.6,0.001]
[1771352621780,7.053134,1988.8,1987.6,0.001]
[1771352622396,4.772435,1988.8,1987.7,1.513]
[1771352622791,3.143125,1988.8,1987.8,0.607]
[1771352623512,1.25710262,1988.7,1987.6,0.001]
[1771352623704,1.25710262,1988.7,1987.7,1.512]
[1771352624008,1.25710262,1988.7,1987.7,0.606]
[1771352624306,1.25710262,1988.7,1987.6,0.001]
[1771352624510,1.72890108,1988.7,1987.6,0.607]
[1771352624712,22.84455811,1988.6,1987.6,0.607]
[1771352624908,7.12760211,1988.6,1987.6,0.001]
[1771352625110,6.65580365,1987.8,1986.4,0.46962916]
[1771352625281,30.633,1988.5,1986.4,1.72818735]
[1771352625282,0.633,1987.9,1986.4,1.72818735]
[1771352625611,0.633,1987.9,1986.5,1.98162916]
[1771352625612,1.25767179,1987.8,1986.5,1.98162916]
[1771352625816,17.045328,1987.6,1986.6,0.606]
[1771352626023,6.43893,1987.6,1986.6,0.606]
[1771352626315,6.43893,1987.6,1985.9,5.0349932]
[1771352626316,6.65580365,1987.2,1985.7,0.46962916]
[1771352626503,1.10479846,1987.5,1985.8,1.512]
[1771352626684,4.390295,1987.4,1985.8,1.98162916]
[1771352626885,6.13059,1987.2,1985.8,0.46962916]
[1771352627203,15.896951,1987.1,1985.7,1.25899645]
[1771352627515,1.25817815,1987.0,1985.8,0.606]
[1771352627722,1.25817815,1987.0,1985.6,0.46962916]
[1771352627723,1.25817815,1987.0,1985.9,1.513]
[1771352628194,1.25817815,1987.0,1986.0,1.513]
[1771352628395,1.25817815,1987.0,1985.6,0.46962916]
[1771352628797,1.25817815,1987.0,1985.7,1.512]
[1771352629020,1.25817815,1987.0,1985.8,1.512]
[1771352629330,1.25817815,1987.0,1985.6,0.46962916]
[1771352629331,18.63137046,1986.9,1985.9,0.606]
[1771352629535,18.63137046,1986.9,1985.7,0.607]
[1771352629536,23.21293665,1986.7,1985.7,0.607]
[1771352629695,19.06042546,1986.5,1985.7,0.001]
[1771352629890,7.29080365,1986.7,1985.5,0.001]
[1771352629891,0.47179846,1986.4,1985.5,0.001]
[1771352630121,14.892782,1986.3,1984.8,1.72919752]
[1771352630323,14.892782,1986.3,1985.4,0.001]
[1771352630642,9.53214,1986.3,1985.4,0.001]
[1771352630807,8.78664,1986.3,1985.4,0.001]
[1771352631007,2.865193,1986.3,1985.5,0.906]
[1771352631338,3.13815,1986.6,1985.5,0.906]
[1771352631491,3.033082,1986.4,1985.4,0.608]
[1771352631829,1.7302933,1986.5,1985.5,0.906]
[1771352632322,2.85855,1986.4,1985.5,0.906]
[1771352632699,2.61455,1986.4,1985.5,0.906]
[1771352633318,2.61455,1986.4,1985.4,1.86718491]
[1771352633319,2.61455,1986.4,1985.4,0.001]
[1771352633523,1.25862155,1986.3,1985.4,0.001]
[1771352635513,17.179113,1986.3,1985.4,0.001]
[1771352635709,16.433613,1986.3,1985.4,0.001]
[1771352636049,0.48523399,1986.3,1985.4,0.001]
[1771352636233,2.747887,1986.3,1985.4,0.001]
[1771352636426,5.03448623,1986.4,1985.4,0.001]
[1771352637641,10.16483,1986.4,1985.5,2.77208095]
[1771352637937,9.75874,1986.4,1985.5,2.77212829]
[1771352638643,9.75874,1986.4,1985.5,1.25912829]
[1771352638942,9.75874,1986.4,1985.5,0.605]
[1771352639738,9.75874,1986.4,1985.6,1.25906526]
[1771352639739,1.25862155,1986.3,1985.6,1.25906526]
[1771352640040,1.25836814,1986.8,1985.6,1.25906526]
[1771352640209,6.886832,1986.7,1985.7,0.604]
[1771352640531,6.886832,1986.7,1985.7,1.511]
[1771352640730,4.024997,1986.7,1985.7,0.604]
[1771352640942,2.272154,1986.7,1985.7,1.511]
[1771352641153,7.1305384,1987.1,1985.6,1.75455023]
[1771352641154,7.1653351,1987.2,1985.8,0.49548497]
[1771352641442,2.65307,1987.1,1985.9,1.511]
[1771352641623,2.38407,1987.1,1985.9,1.511]
[1771352641821,1.25817815,1987.0,1986.0,1.25881168]
[1771352642343,0.48523399,1988.2,1986.4,0.49548497]
[1771352642519,5.03015871,1988.1,1986.7,0.49548497]
[1771352642710,7.1305384,1988.6,1987.0,0.49548497]
[1771352642711,6.218665,1988.5,1987.0,0.49548497]
[1771352642915,4.019275,1988.5,1987.0,0.49548497]
[1771352643129,1.25716584,1988.6,1987.0,0.49548497]
[1771352643447,2.292641,1988.5,1987.0,0.49548497]
[1771352643741,2.292641,1988.5,1987.1,1.51]
[1771352643944,1.25729229,1988.4,1987.2,1.25805152]
[1771352644454,12.35766277,1988.8,1987.3,2.00548497]
[1771352644613,12.35766277,1988.8,1987.4,1.09848497]
[1771352644614,1.25710262,1988.7,1987.4,1.09848497]
[1771352644953,1.25710262,1988.7,1987.4,2.00548497]
[1771352645122,20.444419,1988.6,1987.3,0.602]
[1771352645322,20.444419,1988.6,1987.3,0.603]
[1771352645639,5.40185,1988.6,1987.4,0.603]
[1771352645838,1.25722906,1988.5,1987.5,1.25786163]
[1771352646044,5.02859276,1988.7,1987.5,1.25786163]
[1771352646223,3.029,1988.6,1987.5,1.25786163]
[1771352646551,2.158069,1988.6,1987.5,1.25786163]
[1771352646926,5.211343,1988.6,1987.6,1.511]
[1771352647130,5.02859276,1988.7,1987.6,1.511]
[1771352647326,6.426139,1988.6,1987.6,1.511]
[1771352647633,4.918639,1988.6,1987.6,1.511]
[1771352648154,1.25722906,1988.5,1987.6,2.76873903]
[1771352648850,14.589064,1988.7,1987.6,2.76873903]
[1771352649148,11.18721,1988.7,1987.7,1.511]
[1771352649321,11.18721,1988.7,1987.7,1.5049052]
[1771352649937,1.25703942,1988.8,1987.7,1.5049052]
[1771352650156,2.852844,1988.7,1987.8,1.511]
[1771352651052,1.25703942,1988.8,1987.8,1.511]
[1771352651638,4.994,1988.7,1987.8,1.511]
[1771352652043,1.25703942,1988.8,1987.9,1.25760853]
[1771352652242,1.25703942,1988.8,1988.0,0.603]
[1771352653532,1.25703942,1988.8,1912.9,14.86308109]
[1771352653533,23.385879,1988.7,1987.2,5.52767061]
[1771352653884,19.95387199,1988.7,1987.3,5.03191198]
[1771352654064,1.25729229,1988.4,1987.3,6.54091198]
[1771352654363,1.25729229,1988.4,1986.6,0.47300113]
[1771352654364,22.09910569,1988.3,1986.6,0.47300113]
[1771352654561,7.14667618,1988.1,1986.7,1.51]
[1771352654760,7.14667618,1988.1,1986.6,0.47300113]
[1771352654761,22.201909,1988.0,1986.6,0.47300113]
[1771352654964,0.638,1987.9,1986.8,0.603]
[1771352655169,0.638,1987.9,1986.6,0.47300113]
[1771352655471,0.638,1987.9,1986.7,0.602]
[1771352655472,16.266031,1987.8,1986.7,0.602]
[1771352655681,0.638,1987.9,1985.6,5.50883623]
[1771352655682,0.45321569,1987.4,1985.6,5.50883623]
[1771352655883,7.20296,1987.3,1985.8,0.602]
[1771352656043,6.56496,1987.2,1985.8,0.602]
[1771352656239,1.25811484,1987.1,1985.9,1.25887506]
[1771352656571,7.95157533,1987.1,1986.0,0.602]
[1771352656880,7.95157533,1987.1,1985.9,1.25887506]
[1771352657538,1.25810306,1987.2,1985.9,1.86087506]
[1771352657749,1.25810306,1987.2,1985.9,2.33387619]
[1771352658158,7.503719,1986.7,1985.6,0.602]
[1771352658447,7.14667618,1986.8,1985.7,1.25900186]
[1771352658448,1.89634717,1986.8,1985.7,1.25900186]
[1771352658772,1.89630601,1986.8,1985.7,1.73200299]
[1771352659755,1.25811484,1987.1,1985.7,1.73200299]
[1771352660147,14.763333,1987.0,1985.7,1.73200299]
[1771352660350,1.2582376,1987.0,1985.7,1.73200299]
[1771352660754,1.89607582,1987.2,1985.8,0.47300113]
[1771352662270,1.89607582,1987.2,1985.8,0.46629685]
[1771352662650,1.89607582,1987.2,1985.9,1.25887506]
[1771352662858,1.89607582,1987.2,1985.9,1.73187619]
[1771352663077,1.25796938,1987.4,1986.0,0.47300113]
[1771352663282,1.25796938,1987.4,1986.1,1.98200113]
[1771352663680,12.465501,1987.3,1986.2,0.602]
[1771352663885,12.197281,1987.3,1986.2,1.509]
[1771352664344,12.197281,1987.3,1986.3,0.601]
[1771352665498,1.25805152,1987.2,1986.2,0.601]
[1771352666787,1.25796451,1987.4,1986.2,0.601]
[1771352666986,3.283007,1987.3,1986.2,0.601]
[1771352667189,3.283007,1987.3,1986.3,0.6]
[1771352667371,2.497,1987.3,1986.4,1.25855819]
[1771352667577,8.839529,1987.4,1986.4,1.25855819]
[1771352667767,2.471,1987.3,1986.4,1.25855819]
[1771352668297,3.305295,1987.3,1986.4,1.25855819]
[1771352668466,1.7111802,1987.4,1986.4,1.25855819]
[1771352669167,2.467,1987.3,1986.4,1.25855819]
[1771352669370,2.467,1987.3,1986.4,1.85755819]
[1771352669609,1.25803007,1987.3,1986.4,1.85755819]
[1771352669909,0.0011,1987.2,1986.4,1.85755819]
[1771352670275,0.0011,1987.2,1986.4,1.25855819]
[1771352672501,0.0011,1987.2,1986.4,1.85755819]
[1771352673082,0.0011,1987.2,1986.4,1.25855819]
[1771352673702,0.0011,1988.6,1987.3,0.47300113]
[1771352673900,0.637,1988.4,1987.3,1.07100113]
[1771352674100,0.637,1988.4,1987.2,1.25805152]
[1771352674101,7.93404,1988.3,1987.2,1.25805152]
[1771352674311,6.407628,1988.3,1987.2,1.25805152]
[1771352675182,1.544,1988.4,1987.2,1.25805152]
[1771352675510,1.544,1988.4,1987.3,0.47300113]
[1771352676009,1.544,1988.4,1987.5,0.47300113]
[1771352676215,0.6381,1988.6,1987.5,1.07100113]
[1771352676435,0.6381,1988.6,1987.6,0.47300113]
[1771352676726,0.0011,1988.6,1987.7,0.47300113]
[1771352677213,0.637,1989.0,1987.7,0.47300113]
[1771352677915,0.637,1989.0,1987.9,0.47300113]
[1771352678109,0.637,1989.0,1988.0,0.598]
[1771352678492,0.907,1989.3,1988.1,0.47300113]
[1771352679010,0.907,1989.3,1988.0,0.598]
[1771352679011,0.003,1989.5,1988.8,7.60134993]
[1771352679209,3.231846,1990.5,1989.0,0.47300113]
[1771352679517,3.231846,1990.5,1988.9,1.504]
[1771352679518,0.6361,1990.6,1989.2,0.47300113]
[1771352679716,0.6361,1990.6,1989.4,7.60134993]
[1771352679932,0.6361,1990.6,1989.6,0.47300113]
[1771352679933,0.0011,1990.6,1989.6,0.47300113]
[1771352680101,28.5012788,1990.5,1989.5,1.25659713]
[1771352680317,21.335436,1990.4,1989.5,1.25659713]
[1771352680631,0.634,1990.5,1989.5,1.25659713]
[1771352681327,0.634,1990.5,1989.6,0.597]
[1771352681502,0.9081,1990.6,1989.5,1.25659713]
[1771352681710,0.9081,1990.6,1989.6,1.07000113]
[1771352682012,0.9081,1990.6,1989.7,1.25647082]
[1771352682332,1e-08,1990.7,1989.7,1.25647082]
[1771352682832,1e-08,1990.7,1989.8,0.597]
[1771352683457,1.70906991,1990.7,1989.7,1.25647082]
[1771352683739,1e-08,1990.7,1989.7,1.25647082]
[1771352683905,6.67797401,1990.7,1989.7,1.85247082]
[1771352684301,1e-08,1990.7,1989.7,1.85247082]
[1771352684546,1e-08,1990.7,1989.7,1.25647082]
[1771352684709,0.0011,1990.4,1989.7,1.25647082]
[1771352685567,1e-08,1990.7,1989.8,0.54716869]
[1771352685926,1e-08,1990.7,1989.9,1.85334453]
[1771352686128,1e-08,1990.7,1989.9,1.25634453]
[1771352686322,1e-08,1990.7,1990.0,1.14416869]
[1771352687364,1e-08,1990.7,1990.1,0.54716869]
[1771352687730,0.003,1991.5,1990.4,0.54716869]
[1771352687931,0.003,1991.5,1990.5,2.40013452]
[1771352688556,0.003,1991.5,1990.6,0.54716869]
[1771352688856,0.003,1991.5,1990.7,0.54716869]
[1771352689056,1e-08,1991.9,1990.7,0.54716869]
[1771352689355,0.51565947,1992.3,1990.7,0.54716869]
[1771352689555,0.51565947,1992.3,1990.8,1.503]
[1771352689961,1.77055022,1992.3,1990.9,1.25571349]
[1771352690336,21.09258547,1992.1,1991.0,0.597]
[1771352690532,0.51565947,1992.1,1991.0,0.597]
[1771352691055,0.51565947,1992.1,1991.0,0.594]
[1771352691270,1.25483539,1992.3,1991.0,0.594]
[1771352691475,2.755118,1992.2,1991.0,0.594]
[1771352691683,1.25483539,1992.3,1990.9,1.25571349]
[1771352692008,3.2611,1992.3,1991.1,1.25558736]
[1771352692164,22.83653047,1992.1,1991.1,1.25558736]
[1771352692485,0.51565947,1992.1,1991.1,1.25558736]
[1771352692857,2.76480256,1992.4,1990.3,1.50718584]
[1771352692858,0.54680256,1991.9,1990.3,1.50718584]
[1771352693084,7.1283488,1991.0,1989.8,0.5213839]
[1771352693261,12.219985,1990.9,1989.5,1.25656946]
[1771352693582,7.7603488,1991.0,1989.5,1.85456946]
[1771352693783,0.632,1991.0,1989.7,0.5213839]
[1771352693966,1.88765923,1991.0,1989.9,0.5213839]
[1771352694167,1.88765923,1991.0,1990.0,0.599]
[1771352694785,1.88765923,1991.0,1989.9,0.5213839]
[1771352695083,19.396032,1990.9,1989.6,1.25653397]
[1771352695265,22.382017,1990.8,1989.6,1.25653397]
[1771352695467,7.057283,1990.7,1989.6,1.25653397]
[1771352695665,7.057283,1990.7,1989.5,1.85556425]
[1771352695862,1.25590274,1990.6,1989.5,0.599]
[1771352696062,1.25590274,1990.6,1989.5,2.37696639]
[1771352696369,1.25590274,1990.6,1989.5,1.77796639]
[1771352696682,5.02302984,1990.9,1989.7,0.001]
[1771352696892,14.023863,1990.8,1989.7,0.001]
[1771352697090,14.023863,1990.8,1989.7,0.6]
[1771352697297,0.54680256,1990.7,1989.7,0.001]
[1771352697496,13.259063,1990.6,1989.7,0.001]
[1771352697710,0.635,1990.5,1989.7,0.001]
[1771352698064,1.25602893,1990.4,1989.7,0.001]
[1771352700571,1.25602893,1990.4,1989.5,0.001]
[1771352700572,6.68035978,1990.2,1989.5,0.001]
[1771352700794,11.882042,1990.1,1988.8,0.598]
[1771352701110,11.882042,1990.1,1988.7,0.5213839]
[1771352701111,19.037063,1989.9,1988.7,1.77848538]
[1771352701283,17.574641,1989.9,1988.7,1.77848538]
[1771352701483,0.635,1990.0,1988.8,0.5213839]
[1771352702310,1.25634453,1989.9,1988.9,1.85497621]
[1771352702683,5.66037815,1990.0,1989.0,0.5213839]
[1771352702684,1.89133291,1990.0,1989.0,0.5213839]
[1771352702880,2.16118432,1990.2,1989.0,0.5213839]
[1771352703405,2.16118432,1990.2,1989.1,1.1193839]
[1771352703775,2.16118432,1990.2,1989.2,0.598]
[1771352704199,2.16118432,1990.2,1989.1,1.1193839]
[1771352704701,2.16118432,1990.2,1989.2,1.25678664]
[1771352705487,8.14567,1990.1,1989.1,2.37618618]
[1771352705684,8.31136,1990.0,1988.8,1.85503942]
[1771352706111,8.31136,1990.0,1988.8,1.25703942]
[1771352706279,7.723623,1990.0,1988.8,1.25703942]
[1771352706480,0.636,1990.1,1988.8,1.25703942]
[1771352706697,8.24529,1989.9,1988.8,1.25703942]
[1771352706891,4.64955,1989.9,1988.8,1.25703942]
[1771352707197,2.92455,1989.9,1988.8,1.25703942]
[1771352707392,3.48055,1989.9,1988.8,1.25703942]
[1771352707602,1.2562814,1990.0,1988.9,0.599]
[1771352707883,2.98189,1989.9,1988.8,1.25703942]
[1771352708395,2.98189,1989.9,1988.8,1.85603942]
[1771352708923,1.25640767,1989.8,1988.7,1.85605367]
[1771352709119,0.638,1989.7,1988.7,1.85605367]
[1771352709322,2.341949,1989.6,1988.6,1.25710818]
[1771352709619,2.341949,1989.6,1988.5,1.25721757]
[1771352709837,0.638,1989.7,1988.5,0.5213839]
[1771352710016,0.638,1989.7,1988.6,0.598]
[1771352710193,4.66182,1989.6,1988.6,0.598]
[1771352710390,2.802118,1989.6,1988.6,0.598]
[1771352710615,1.18480256,1989.7,1988.6,1.1203839]
[1771352710616,0.638,1989.7,1988.6,1.1203839]
[1771352710932,0.638,1989.7,1988.9,0.001]
[1771352710933,1.25653397,1989.6,1988.9,0.001]
[1771352713237,19.575077,1989.5,1988.9,0.001]
[1771352713429,0.54680256,1989.4,1988.6,0.001]
[1771352713727,0.638,1989.3,1988.6,0.001]
[1771352713897,7.20520955,1989.3,1988.6,0.001]
[1771352714095,12.609688,1989.2,1988.1,1.25744495]
[1771352714295,7.20520955,1989.3,1987.7,1.25869944]
[1771352714296,19.100092,1988.9,1987.7,1.25869944]
[1771352714641,6.56720955,1988.7,1987.7,0.001]
[1771352714845,11.281538,1988.6,1987.7,0.001]
[1771352714991,1.25722906,1988.5,1987.7,0.001]
[1771352715308,0.639,1988.4,1987.7,0.001]
[1771352716993,1.25735552,1988.3,1987.7,0.001]
[1771352718194,1.8963364,1988.4,1987.7,0.001]
[1771352718422,0.639,1988.4,1987.7,0.001]
[1771352719219,1.544,1988.7,1987.7,0.77620035]
[1771352719515,1.544,1988.7,1987.8,0.596]
[1771352719818,1.544,1988.7,1987.8,1.37120035]
[1771352719819,2.80111214,1988.7,1987.8,1.37120035]
[1771352720017,1.544,1988.7,1987.8,1.37120035]
[1771352720196,2.80110836,1988.7,1987.8,1.37120035]
[1771352720399,2.80110836,1988.7,1987.7,0.001]
[1771352720400,1.544,1988.7,1987.7,0.77620035]
[1771352721117,0.638,1989.1,1987.9,0.77520035]
[1771352721322,0.638,1989.1,1988.1,0.77520035]
[1771352722588,1.2567743,1989.3,1988.1,0.77520035]
[1771352723029,2.80071101,1989.4,1988.2,1.37120035]
[1771352723201,1.544,1989.4,1988.4,2.03249264]
[1771352723520,1.544,1989.4,1988.5,0.77520035]
[1771352723724,2.80066273,1989.4,1988.5,0.77520035]
[1771352724125,2.80067584,1989.4,1988.5,0.77520035]
[1771352724419,2.80067584,1989.4,1988.5,1.37120035]
[1771352725130,2.80067584,1989.4,1988.4,1.85329229]
[1771352725296,0.0011,1989.0,1988.4,1.85329229]
[1771352725492,0.0011,1989.0,1988.4,2.62849264]
[1771352725711,0.0011,1989.0,1988.5,0.77520035]
[1771352725926,0.0011,1989.0,1988.5,0.596]
[1771352726428,0.0011,1989.0,1988.5,1.37120035]
[1771352727709,0.0011,1989.0,1988.6,1.25716584]
[1771352728427,0.0011,1989.0,1988.6,2.03236619]
[1771352729344,0.0011,1989.0,1988.6,1.25716584]
[1771352729552,0.0011,1989.0,1988.6,1.85416584]
[1771352730851,0.0011,1989.0,1988.6,1.25716584]
[1771352731422,0.0011,1989.0,1988.5,1.85421429]
[1771352731842,0.0011,1989.0,1988.5,1.25721429]
[1771352732151,0.0011,1989.0,1988.4,5.02912338]
[1771352732924,0.0011,1989.0,1988.4,5.80432373]
[1771352733639,0.0011,1989.0,1988.5,0.598]
[1771352734354,0.0011,1989.0,1988.2,0.001]
[1771352734523,0.0011,1989.0,1988.3,1.85535552]
[1771352735352,0.0011,1989.0,1988.2,0.001]
[1771352735541,20.73197155,1988.9,1988.2,0.001]
[1771352735744,3.310838,1988.9,1988.2,1.25841608]
[1771352736147,1.25703942,1988.8,1988.2,0.001]
[1771352736321,1.25699163,1988.9,1988.2,0.001]
[1771352736928,1.25699163,1988.9,1988.0,0.001]
[1771352736929,6.56720955,1988.7,1988.0,0.001]
[1771352737248,7.398183,1988.7,1988.0,0.001]
[1771352737445,7.398183,1988.7,1987.7,0.001]
[1771352737446,21.780306,1988.5,1987.7,0.001]
[1771352737635,16.585063,1988.5,1987.7,0.001]
[1771352737834,16.138373,1988.5,1987.7,0.001]
[1771352738035,16.96934645,1988.5,1987.7,0.001]
[1771352738241,1.25735552,1988.3,1987.7,0.001]
[1771352738446,1.25735552,1988.3,1987.5,0.6]
[1771352738764,1.89335552,1988.3,1987.5,1.25885375]
[1771352739176,22.77148252,1988.3,1987.5,1.25885375]
[1771352739343,1.89335552,1988.3,1988.0,0.001]
[1771352739664,1.89335552,1988.3,1987.9,0.001]
[1771352739868,0.636,1988.3,1987.9,0.001]
[1771352740233,1.89340435,1988.3,1987.9,0.001]
[1771352740430,1.89340435,1988.3,1987.5,0.001]
[1771352741431,0.636,1988.3,1987.5,0.001]
[1771352741774,0.636,1988.3,1987.5,0.77620035]
[1771352741973,1.89335649,1988.3,1987.5,0.77620035]
[1771352742158,1.89335649,1988.3,1987.6,1.25779834]
[1771352742477,0.0011,1989.0,1987.8,0.77520035]
[1771352742764,1.25802296,1989.0,1987.8,0.77520035]
[1771352743270,1.25801783,1989.0,1987.8,0.77520035]
[1771352743474,1.25801783,1989.0,1987.8,0.597]
[1771352743475,6.56720955,1988.7,1987.8,0.597]
[1771352743634,6.56720955,1988.7,1987.6,1.25779834]
[1771352743957,17.109092,1988.5,1987.6,1.25779834]
[1771352744157,16.604442,1988.5,1987.6,1.25779834]
[1771352744365,1.25729229,1988.4,1987.5,1.2588165]
[1771352744669,6.658459,1988.3,1987.5,1.2588165]
[1771352744869,6.658459,1988.3,1987.5,0.001]
[1771352745046,3.360066,1988.3,1987.5,1.25885563]
[1771352745373,1.25729229,1988.4,1987.5,1.25885563]
[1771352745552,1.25725902,1988.5,1987.5,1.25885563]
[1771352746475,1.25725902,1988.5,1987.5,0.001]
[1771352748084,1.89317535,1988.6,1987.5,0.001]
[1771352748378,0.906,1988.7,1987.7,0.77355899]
[1771352748589,2.16310477,1988.7,1987.8,0.598]
[1771352748943,3.75139,1988.6,1987.6,1.25779834]
[1771352749144,8.73031432,1988.7,1987.6,1.25779834]
[1771352749145,0.639,1988.5,1987.6,1.85579834]
[1771352750466,0.639,1988.5,1987.5,1.25885954]
[1771352750467,1.89627354,1988.5,1987.5,1.25885954]
[1771352751597,7.30214179,1988.4,1987.5,1.25884424]
[1771352751792,6.56720955,1988.4,1987.6,0.001]
[1771352751957,0.639,1988.5,1987.6,0.001]
[1771352752162,0.639,1988.5,1987.6,1.37255899]
[1771352752363,1.545,1988.7,1987.8,2.03123078]
[1771352752581,1.545,1988.7,1987.9,0.77355899]
[1771352752888,2.80210602,1988.7,1987.9,0.77355899]
[1771352753392,1.545,1988.7,1987.9,0.77355899]
[1771352753967,0.0011,1988.8,1987.9,0.77355899]
[1771352754364,0.0011,1988.8,1988.3,0.72561005]
[1771352754572,0.0011,1988.8,1988.4,0.598]
[1771352754862,0.0011,1988.8,1988.4,1.32361005]
[1771352755344,0.0011,1989.0,1988.5,0.72561005]
[1771352756390,0.0011,1989.0,1988.6,1.25716584]
[1771352757478,0.0011,1989.0,1988.6,1.98277589]
[1771352757998,0.0011,1989.0,1988.2,13.04413607]
[1771352757999,0.31010141,1988.6,1987.6,0.001]
[1771352758185,1.542,1988.5,1987.6,0.001]
[1771352758382,1.25729229,1988.4,1987.6,0.001]
[1771352758893,5.783506,1988.3,1987.6,0.001]
[1771352759765,12.89297869,1988.3,1987.6,0.001]
[1771352759965,7.10947269,1988.3,1987.3,0.001]
[1771352760174,17.170606,1988.2,1987.3,0.001]
[1771352760396,8.725762,1988.2,1987.3,0.001]
[1771352760904,1.25748201,1988.1,1987.3,0.001]
[1771352761070,7.74647269,1988.0,1987.3,0.001]
[1771352761781,0.637,1988.0,1987.3,0.001]
[1771352762376,0.637,1988.0,1986.9,0.72561005]
[1771352762575,0.637,1988.0,1986.7,1.25831207]
[1771352762576,7.10947269,1987.8,1986.7,0.598]
[1771352762783,1.25773507,1987.7,1986.5,1.98404931]
[1771352763211,1.25773507,1987.7,1986.6,0.72561005]
[1771352763615,2.16371835,1987.8,1986.6,0.72561005]
[1771352764786,2.16371835,1987.8,1986.8,0.72561005]
[1771352764986,2.16371835,1987.8,1986.9,0.72561005]
[1771352765312,0.906,1987.8,1986.9,0.72561005]
[1771352765484,2.16367497,1987.8,1986.9,0.72561005]
[1771352765676,0.906,1987.8,1986.9,0.72561005]
[1771352765884,2.16368273,1987.8,1986.9,0.72561005]
[1771352766583,0.637,1988.0,1986.9,0.72561005]
[1771352766786,0.0011,1988.3,1987.2,0.72561005]
[1771352766987,0.0011,1988.3,1987.4,0.72561005]
[1771352769117,0.0011,1988.3,1987.5,1.25786163]
[1771352769283,0.0011,1988.3,1987.4,0.72561005]
[1771352769795,0.0011,1988.3,1987.2,1.85601474]
[1771352770020,7.10947269,1988.1,1987.1,1.25808225]